fUST/lending_fUST_20251007
["ID","MTS","AMOUNT","RATE_DAILY","PERIOD"]
[389688713,1759794669687,-500.0,0.00019726,2]
[389688714,1759794669696,-500.0,0.00019726,2]
[389688715,1759794669705,-1648.59,0.00019726,2]
[389688716,1759794669714,-500.0,0.00019726,2]
[389688717,1759794669724,-500.0,0.00019726,2]
[389688718,1759794669733,-500.0,0.00019726,2]
[389688719,1759794669748,-500.0,0.00019726,2]
[389688720,1759794669757,-500.0,0.00019726,2]
[389688721,1759794669766,-500.0,0.00019726,2]
[389688722,1759794669776,-500.0,0.00019726,2]
[389688723,1759794669785,-500.0,0.00019726,2]
[389688724,1759794669796,-500.0,0.00019726,2]
[389688725,1759794669810,-500.0,0.00019726,2]
[389688726,1759794669823,-460.0,0.00019726,2]
[389688727,1759794669832,-500.0,0.00019726,2]
[389688728,1759794669841,-500.0,0.00019726,2]
[389688729,1759794669851,-500.0,0.00019726,2]
[389688730,1759794669860,-500.16,0.00019726,2]
[389688731,1759794669870,-500.0,0.00019726,2]
[389688732,1759794669879,-500.0,0.00019726,2]
[389688733,1759794669888,-500.0,0.00019726,2]
[389688734,1759794669897,-500.0,0.00019726,2]
[389688735,1759794669906,-500.0,0.00019726,2]
[389688736,1759794669916,-500.0,0.00019726,2]
[389688737,1759794669925,-848.12,0.00019726,2]
[389688738,1759794669935,-500.0,0.00019726,2]
[389688739,1759794669944,-618.87,0.00019726,2]
[389688740,1759794669954,-1204.82,0.00019726,2]
[389688741,1759794669963,-500.0,0.00019726,2]
[389688742,1759794669972,-500.0,0.00019726,2]
[389688743,1759794669982,-673.99,0.00019726,2]
[389688744,1759794669992,-393.63928245,0.00019726,2]
[389688745,1759794670001,-500.0,0.00019726,2]
[389688746,1759794670011,-500.0,0.00019726,2]
[389688747,1759794670021,-500.0,0.00019726,2]
[389688748,1759794670030,-500.0,0.00019726,2]
[389688749,1759794670039,-500.0,0.00019726,2]
[389688750,1759794670049,-500.0,0.00019726,2]
[389688751,1759794670059,-500.0,0.00019726,2]
[389688752,1759794670068,-592.66,0.00019726,2]
[389688753,1759794670078,-500.0,0.00019726,2]
[389688754,1759794670088,-500.0,0.00019726,2]
[389688755,1759794670097,-500.0,0.00019726,2]
[389688756,1759794670107,-491.71371537,0.00019726,2]
[389688757,1759794670116,-500.0,0.00019726,2]
[389688758,1759794670125,-500.0,0.00019726,2]
[389688759,1759794670135,-500.0,0.00019726,2]
[389688760,1759794670144,-500.0,0.00019726,2]
[389688761,1759794670153,-500.0,0.00019726,2]
[389688762,1759794670163,-500.0,0.00019726,2]
[389688763,1759794670172,-500.0,0.00019726,2]
[389688764,1759794670182,-500.0,0.00019726,2]
[389688765,1759794670191,-500.0,0.00019726,2]
[389688766,1759794670201,-606.72,0.00019726,2]
[389688767,1759794670210,-500.0,0.00019726,2]
[389688768,1759794670219,-500.0,0.00019726,2]
[389688769,1759794670228,-500.0,0.00019726,2]
[389688770,1759794670237,-500.0,0.00019726,2]
[389688771,1759794670247,-526.05800884,0.00019726,2]
[389688772,1759794670256,-500.0,0.00019726,2]
[389688773,1759794670265,-500.0,0.00019726,2]
[389688774,1759794670274,-500.0,0.00019726,2]
[389688775,1759794670283,-697.39,0.00019726,2]
[389688776,1759794670293,-244.69339004,0.00019726,2]
[389688777,1759794670302,-500.0,0.00019726,2]
[389688778,1759794670311,-500.0,0.00019726,2]
[389688779,1759794670320,-500.0,0.00019726,2]
[389688780,1759794670330,-500.0,0.00019726,2]
[389688781,1759794670339,-500.0,0.00019726,2]
[389688782,1759794670348,-500.0,0.00019726,2]
[389688783,1759794670357,-500.0,0.00019726,2]
[389688784,1759794670366,-1266.83,0.00019726,2]
[389688785,1759794670375,-500.0,0.00019726,2]
[389688786,1759794670384,-500.0,0.00019726,2]
[389688787,1759794670393,-500.0,0.00019726,2]
[389688788,1759794670402,-500.0,0.00019726,2]
[389688789,1759794670412,-500.0,0.00019726,2]
[389688790,1759794670422,-500.0,0.00019726,2]
[389688791,1759794670431,-296.17161305,0.00019726,2]
[389688792,1759794670440,-500.0,0.00019726,2]
[389688793,1759794670450,-547.76028023,0.00019726,2]
[389688794,1759794670459,-840.97,0.00019726,2]
[389688795,1759794670469,-500.0,0.00019726,2]
[389688796,1759794670479,-500.0,0.00019726,2]
[389688797,1759794670488,-500.0,0.00019726,2]
[389688798,1759794670497,-500.0,0.00019726,2]
[389688799,1759794670506,-500.0,0.00019726,2]
[389688800,1759794670515,-500.0,0.00019726,2]
[389688801,1759794670525,-500.0,0.00019726,2]
[389688802,1759794670534,-500.0,0.00019726,2]
[389688803,1759794670544,-500.0,0.00019726,2]
[389688804,1759794670553,-500.0,0.00019726,2]
[389688805,1759794670563,-500.0,0.00019726,2]
[389688806,1759794670573,-500.0,0.00019726,2]
[389688807,1759794670583,-500.0,0.00019726,2]
[389688808,1759794670592,-500.0,0.00019726,2]
[389688809,1759794670601,-430.65305903,0.00019726,2]
[389688810,1759794670611,-500.0,0.00019726,2]
[389688811,1759794670620,-500.0,0.00019726,2]
[389688812,1759794670629,-500.0,0.00019726,2]
[389688813,1759794670639,-1558.89,0.00019726,2]
[389688814,1759794670648,-1623.64,0.00019726,2]
[389688815,1759794670657,-500.0,0.00019726,2]
[389688816,1759794670667,-500.0,0.00019726,2]
[389688817,1759794670676,-500.0,0.00019726,2]
[389688818,1759794670685,-500.0,0.00019726,2]
[389688819,1759794670694,-500.0,0.00019726,2]
[389688820,1759794670704,-892.11,0.00019726,2]
[389688821,1759794670713,-500.0,0.00019726,2]
[389688822,1759794670723,-5877.95,0.00019726,2]
[389688823,1759794670734,-500.0,0.00019726,2]
[389688824,1759794670743,-656.07,0.00019726,2]
[389688825,1759794670752,-500.0,0.00019726,2]
[389688826,1759794670761,-1129.7,0.00019726,2]
[389688827,1759794670770,-500.0,0.00019726,2]
[389688828,1759794670780,-500.0,0.00019726,2]
[389688829,1759794670790,-3602.86,0.00019726,2]
[389688830,1759794670799,-776.98,0.00019726,2]
[389688831,1759794670809,-500.0,0.00019726,2]
[389688832,1759794670819,-1061.88,0.00019726,2]
[389688833,1759794670829,-232.38923466,0.00019726,2]
[389688834,1759794670839,-500.0,0.00019726,2]
[389688835,1759794670849,-500.0,0.00019726,2]
[389688836,1759794670858,-500.0,0.00019726,2]
[389688837,1759794670867,-500.0,0.00019726,2]
[389688838,1759794670877,-500.0,0.00019726,2]
[389688839,1759794670887,-500.0,0.00019726,2]
[389688840,1759794670896,-500.0,0.00019726,2]
[389688841,1759794670906,-500.0,0.00019726,2]
[389688842,1759794670916,-500.0,0.00019726,2]
[389688843,1759794670926,-500.0,0.00019726,2]
[389688844,1759794670935,-500.0,0.00019726,2]
[389688845,1759794670945,-1471.61,0.00019726,2]
[389688846,1759794670954,-500.0,0.00019726,2]
[389688847,1759794670964,-500.0,0.00019726,2]
[389688848,1759794670973,-500.0,0.00019726,2]
[389688849,1759794670983,-500.0,0.00019726,2]
[389688850,1759794670992,-500.0,0.00019726,2]
[389688851,1759794671001,-500.0,0.00019726,2]
[389688852,1759794671011,-500.0,0.00019726,2]
[389688853,1759794671020,-500.0,0.00019726,2]
[389688854,1759794671034,-500.0,0.00019726,2]
[389688855,1759794671048,-959.84,0.00019726,2]
[389688856,1759794671064,-500.0,0.00019726,2]
[389688857,1759794671075,-500.0,0.00019726,2]
[389688858,1759794671088,-500.0,0.00019726,2]
[389688859,1759794671101,-901.55,0.00019726,2]
[389688860,1759794671114,-437.64350587,0.00019726,2]
[389688861,1759794671128,-500.0,0.00019726,2]
[389688862,1759794671142,-500.0,0.00019726,2]
[389688863,1759794671156,-500.0,0.00019726,2]
[389688864,1759794671169,-708.46,0.00019726,2]
[389688865,1759794671181,-619.21023083,0.00019726,2]
[389688866,1759794671193,-1240.18,0.00019726,2]
[389688867,1759794671207,-500.0,0.00019726,2]
[389688868,1759794671221,-500.0,0.00019726,2]
[389688869,1759794671232,-500.0,0.00019726,2]
[389688870,1759794671243,-500.0,0.00019726,2]
[389688871,1759794671256,-500.0,0.00019726,2]
[389688872,1759794671269,-500.0,0.00019726,2]
[389688873,1759794671283,-500.0,0.00019726,2]
[389688874,1759794671297,-1631.95,0.00019726,2]
[389688875,1759794671312,-500.0,0.00019726,2]
[389688876,1759794671326,-500.0,0.00019726,2]
[389688877,1759794671337,-1065.87,0.00019726,2]
[389688878,1759794671347,-500.0,0.00019726,2]
[389688879,1759794671359,-500.0,0.00019726,2]
[389688880,1759794671373,-500.0,0.00019726,2]
[389688881,1759794671385,-500.0,0.00019726,2]
[389688882,1759794671397,-500.0,0.00019726,2]
[389688883,1759794671409,-1990.6,0.00019726,2]
[389688884,1759794671423,-1703.93,0.00019726,2]
[389688885,1759794671433,-500.0,0.00019726,2]
[389688886,1759794671444,-500.0,0.00019726,2]
[389688887,1759794671455,-500.0,0.00019726,2]
[389688888,1759794671467,-500.0,0.00019726,2]
[389688889,1759794671479,-500.0,0.00019726,2]
[389688890,1759794671490,-500.0,0.00019726,2]
[389688891,1759794671501,-500.0,0.00019726,2]
[389688892,1759794671512,-500.0,0.00019726,2]
[389688893,1759794671524,-500.0,0.00019726,2]
[389688894,1759794671535,-500.0,0.00019726,2]
[389688895,1759794671546,-500.0,0.00019726,2]
[389688896,1759794671557,-500.0,0.00019726,2]
[389688897,1759794671569,-500.0,0.00019726,2]
[389688898,1759794671580,-823.88,0.00019726,2]
[389688899,1759794671592,-500.0,0.00019726,2]
[389688900,1759794671604,-500.0,0.00019726,2]
[389688901,1759794671617,-934.47,0.00019726,2]
[389688902,1759794671632,-500.0,0.00019726,2]
[389688903,1759794671644,-500.0,0.00019726,2]
[389688904,1759794671655,-500.0,0.00019726,2]
[389688905,1759794671667,-500.0,0.00019726,2]
[389688906,1759794671678,-500.0,0.00019726,2]
[389688907,1759794671690,-500.0,0.00019726,2]
[389688908,1759794671701,-524.1,0.00019726,2]
[389688909,1759794671713,-4162.89,0.00019726,2]
[389688910,1759794671724,-500.0,0.00019726,2]
[389688911,1759794671736,-500.0,0.00019726,2]
[389688912,1759794671747,-2372.53,0.00019726,2]
[389688913,1759794671758,-500.0,0.00019726,2]
[389688914,1759794671771,-500.0,0.00019726,2]
[389688915,1759794671782,-500.0,0.00019726,2]
[389688916,1759794671793,-500.0,0.00019726,2]
[389688917,1759794671803,-5117.34,0.00019726,2]
[389688918,1759794671814,-500.0,0.00019726,2]
[389688919,1759794671825,-561.21,0.00019726,2]
[389688920,1759794671836,-500.0,0.00019726,2]
[389688921,1759794671847,-500.0,0.00019726,2]
[389688922,1759794671858,-500.0,0.00019726,2]
[389688923,1759794671868,-500.0,0.00019726,2]
[389688924,1759794671880,-500.0,0.00019726,2]
[389688925,1759794671891,-1268.45,0.00019726,2]
[389688926,1759794671902,-500.0,0.00019726,2]
[389688927,1759794671914,-500.0,0.00019726,2]
[389688928,1759794671925,-529.21,0.00019726,2]
[389688929,1759794671936,-1609.53,0.00019726,2]
[389688930,1759794671947,-978.09,0.00019726,2]
[389688931,1759794671958,-500.0,0.00019726,2]
[389688932,1759794671969,-500.0,0.00019726,2]
[389688933,1759794671980,-500.0,0.00019726,2]
[389688934,1759794671991,-732.46,0.00019726,2]
[389688935,1759794672003,-1964.19,0.00019726,2]
[389688936,1759794672015,-500.0,0.00019726,2]
[389688937,1759794672026,-420.0,0.00019726,2]
[389688938,1759794672038,-500.0,0.00019726,2]
[389688939,1759794672050,-500.0,0.00019726,2]
[389688940,1759794672062,-500.0,0.00019726,2]
[389688941,1759794672074,-524.71,0.00019726,2]
[389688942,1759794672086,-504.59,0.00019726,2]
[389688943,1759794672098,-500.0,0.00019726,2]
[389688944,1759794672109,-1254.65,0.00019726,2]
[389688945,1759794672120,-543.28,0.00019726,2]
[389688946,1759794672131,-500.0,0.00019726,2]
[389688947,1759794672142,-1105.07,0.00019726,2]
[389688948,1759794672154,-500.0,0.00019726,2]
[389688949,1759794672166,-500.0,0.00019726,2]
[389688950,1759794672178,-10494.31,0.00019726,2]
[389688951,1759794672190,-500.0,0.00019726,2]
[389688952,1759794672201,-500.0,0.00019726,2]
[389688953,1759794672212,-500.0,0.00019726,2]
[389688954,1759794672223,-500.0,0.00019726,2]
[389688955,1759794672235,-563.15,0.00019726,2]
[389688956,1759794672246,-500.0,0.00019726,2]
[389688957,1759794672257,-672.46,0.00019726,2]
[389688958,1759794672268,-2550.03,0.00019726,2]
[389688959,1759794672280,-366.68033822,0.00019726,2]
[389688960,1759794672292,-500.0,0.00019726,2]
[389688961,1759794672303,-500.0,0.00019726,2]
[389688962,1759794672314,-1601.47,0.00019726,2]
[389688963,1759794672325,-2844.58,0.00019726,2]
[389688964,1759794672336,-500.0,0.00019726,2]
[389688965,1759794672347,-500.0,0.00019726,2]
[389688966,1759794672358,-1000.0,0.00019726,2]
[389688967,1759794672368,-500.0,0.00019726,2]
[389688968,1759794672379,-500.0,0.00019726,2]
[389688969,1759794672389,-964.17,0.00019726,2]
[389688970,1759794672400,-500.0,0.00019726,2]
[389688971,1759794672411,-904.37,0.00019726,2]
[389688972,1759794672422,-500.0,0.00019726,2]
[389688973,1759794672433,-500.0,0.00019726,2]
[389688974,1759794672444,-489.38728409,0.00019726,2]
[389688975,1759794672455,-3716.67,0.00019726,2]
[389688976,1759794672466,-6155.74,0.00019726,2]
[389688977,1759794672478,-500.0,0.00019726,2]
[389688978,1759794672489,-500.0,0.00019726,2]
[389688979,1759794672502,-500.0,0.00019726,2]
[389688980,1759794672514,-591.44,0.00019726,2]
[389688981,1759794672526,-500.0,0.00019726,2]
[389688982,1759794672538,-585.84,0.00019726,2]
[389688983,1759794672548,-500.0,0.00019726,2]
[389688984,1759794672559,-500.0,0.00019726,2]
[389688985,1759794672570,-500.0,0.00019726,2]
[389688986,1759794672581,-500.0,0.00019726,2]
[389688987,1759794672591,-500.0,0.00019726,2]
[389688988,1759794672603,-758.29,0.00019726,2]
[389688989,1759794672614,-12699.38,0.00019726,2]
[389688990,1759794672625,-876.75,0.00019726,2]
[389688991,1759794672635,-500.0,0.00019726,2]
[389688992,1759794672646,-500.0,0.00019726,2]
[389688993,1759794672656,-500.0,0.00019726,2]
[389688994,1759794672667,-500.0,0.00019726,2]
[389688995,1759794672677,-500.0,0.00019726,2]
[389688996,1759794672687,-500.0,0.00019726,2]
[389688997,1759794672699,-500.0,0.00019726,2]
[389688998,1759794672709,-500.0,0.00019726,2]
[389688999,1759794672720,-500.0,0.00019726,2]
[389689000,1759794672731,-920.58,0.00019726,2]
[389689001,1759794672741,-465.95658928,0.00019726,2]
[389689002,1759794672752,-617.52,0.00019726,2]
[389689003,1759794672762,-500.0,0.00019726,2]
[389689004,1759794672777,-460.0,0.00019726,2]
[389689005,1759794672787,-500.0,0.00019726,2]
[389689006,1759794672798,-500.0,0.00019726,2]
[389689007,1759794672809,-500.0,0.00019726,2]
[389689008,1759794672820,-500.0,0.00019726,2]
[389689009,1759794672831,-2048.61,0.00019726,2]
[389689010,1759794672842,-500.0,0.00019726,2]
[389689011,1759794672853,-367.37075356,0.00019726,2]
[389689012,1759794672863,-500.0,0.00019726,2]
[389689013,1759794672875,-500.0,0.00019726,2]
[389689014,1759794672886,-500.0,0.00019726,2]
[389689015,1759794672898,-500.0,0.00019726,2]
[389689016,1759794672909,-880.97,0.00019726,2]
[389689017,1759794672920,-500.0,0.00019726,2]
[389689018,1759794672931,-500.0,0.00019726,2]
[389689019,1759794672942,-500.0,0.00019726,2]
[389689020,1759794672953,-500.0,0.00019726,2]
[389689021,1759794672964,-500.0,0.00019726,2]
[389689022,1759794672974,-500.0,0.00019726,2]
[389689023,1759794672986,-500.0,0.00019726,2]
[389689024,1759794672995,-500.0,0.00019726,2]
[389689025,1759794673006,-2022.89,0.00019726,2]
[389689026,1759794673017,-500.0,0.00019726,2]
[389689027,1759794673027,-500.0,0.00019726,2]
[389689028,1759794673038,-500.0,0.00019726,2]
[389689029,1759794673347,-500.0,0.00019726,2]
[389689030,1759794673371,-534.91,0.00019726,2]
[389689031,1759794673382,-500.0,0.00019726,2]
[389689032,1759794673391,-500.0,0.00019726,2]
[389689033,1759794673401,-500.0,0.00019726,2]
[389689034,1759794673410,-500.0,0.00019726,2]
[389689035,1759794673419,-2972.42,0.00019726,2]
[389689036,1759794673429,-500.0,0.00019726,2]
[389689037,1759794673439,-500.0,0.00019726,2]
[389689038,1759794673448,-500.0,0.00019726,2]
[389689039,1759794673458,-217.38735745,0.00019726,2]
[389689040,1759794673467,-2537.24,0.00019726,2]
[389689041,1759794673477,-7317.29,0.00019726,2]
[389689042,1759794673486,-4573.19,0.00019726,2]
[389689043,1759794673496,-500.0,0.00019726,2]
[389689044,1759794673505,-2496.8,0.00019726,2]
[389689045,1759794673516,-229.91220914,0.00019726,2]
[389689046,1759794673525,-500.0,0.00019726,2]
[389689047,1759794673535,-500.0,0.00019726,2]
[389689048,1759794673544,-500.0,0.00019726,2]
[389689049,1759794673554,-500.0,0.00019726,2]
[389689050,1759794673564,-500.0,0.00019726,2]
[389689051,1759794673573,-890.29,0.00019726,2]
[389689052,1759794673582,-500.0,0.00019726,2]
[389689053,1759794673592,-571.03,0.00019726,2]
[389689054,1759794673601,-500.0,0.00019726,2]
[389689055,1759794673611,-500.0,0.00019726,2]
[389689056,1759794673620,-500.0,0.00019726,2]
[389689057,1759794673629,-500.0,0.00019726,2]
[389689058,1759794673639,-500.0,0.00019726,2]
[389689059,1759794673648,-2203.48,0.00019726,2]
[389689060,1759794673657,-1529.59,0.00019726,2]
[389689061,1759794673667,-500.0,0.00019726,2]
[389689062,1759794673676,-500.0,0.00019726,2]
[389689063,1759794673685,-588.5,0.00019726,2]
[389689064,1759794673694,-500.0,0.00019726,2]
[389689065,1759794673703,-500.0,0.00019726,2]
[389689066,1759794673712,-500.0,0.00019726,2]
[389689067,1759794673721,-500.0,0.00019726,2]
[389689068,1759794673730,-443.24249484,0.00019726,2]
[389689069,1759794673739,-723.45,0.00019726,2]
[389689070,1759794673748,-500.0,0.00019726,2]
[389689071,1759794673757,-500.0,0.00019726,2]
[389689072,1759794673767,-500.0,0.00019726,2]
[389689073,1759794673777,-500.0,0.00019726,2]
[389689074,1759794673786,-500.0,0.00019726,2]
[389689075,1759794673796,-1252.47,0.00019726,2]
[389689076,1759794673806,-500.0,0.00019726,2]
[389689077,1759794673815,-500.0,0.00019726,2]
[389689078,1759794673824,-500.0,0.00019726,2]
[389689079,1759794673834,-500.0,0.00019726,2]
[389689080,1759794673845,-500.0,0.00019726,2]
[389689081,1759794673855,-500.0,0.00019726,2]
[389689082,1759794673864,-500.0,0.00019726,2]
[389689083,1759794673874,-500.0,0.00019726,2]
[389689084,1759794673885,-1191.4,0.00019726,2]
[389689085,1759794673896,-500.0,0.00019726,2]
[389689086,1759794673907,-500.0,0.00019726,2]
[389689087,1759794673918,-500.0,0.00019726,2]
[389689088,1759794673927,-401.27948119,0.00019726,2]
[389689089,1759794673937,-500.0,0.00019726,2]
[389689090,1759794673946,-500.0,0.00019726,2]
[389689091,1759794673955,-684.65,0.00019726,2]
[389689092,1759794673964,-500.0,0.00019726,2]
[389689093,1759794673973,-500.0,0.00019726,2]
[389689094,1759794673983,-500.23094065,0.00019726,2]
[389689095,1759794673992,-500.0,0.00019726,2]
[389689096,1759794674001,-500.0,0.00019726,2]
[389689097,1759794674010,-15772.07,0.00019726,2]
[389689098,1759794674019,-500.0,0.00019726,2]
[389689099,1759794674028,-500.0,0.00019726,2]
[389689100,1759794674036,-500.0,0.00019726,2]
[389689101,1759794674045,-500.0,0.00019726,2]
[389689102,1759794674055,-2405.27,0.00019726,2]
[389689103,1759794674064,-500.0,0.00019726,2]
[389689104,1759794674073,-500.0,0.00019726,2]
[389689105,1759794674082,-500.0,0.00019726,2]
[389689106,1759794674091,-500.0,0.00019726,2]
[389689107,1759794674099,-500.0,0.00019726,2]
[389689108,1759794674108,-500.0,0.00019726,2]
[389689109,1759794674118,-500.0,0.00019726,2]
[389689110,1759794674127,-500.0,0.00019726,2]
[389689111,1759794674136,-513.53,0.00019726,2]
[389689112,1759794674146,-500.0,0.00019726,2]
[389689113,1759794674156,-500.0,0.00019726,2]
[389689114,1759794674165,-500.0,0.00019726,2]
[389689115,1759794674175,-500.0,0.00019726,2]
[389689116,1759794674184,-500.0,0.00019726,2]
[389689117,1759794674194,-500.0,0.00019726,2]
[389689118,1759794674203,-1379.27,0.00019726,2]
[389689119,1759794674212,-500.0,0.00019726,2]
[389689120,1759794674222,-500.0,0.00019726,2]
[389689121,1759794674231,-500.0,0.00019726,2]
[389689122,1759794674240,-168.0,0.00019754,2]
[389689123,1759794674249,-168.0,0.00019759,2]
[389689124,1759794674259,-168.0,0.00019769,2]
[389689125,1759794674267,-500.0,0.00019773,2]
[389689126,1759794674276,-500.0,0.00019773,2]
[389689127,1759794674286,-500.0,0.00019773,2]
[389689128,1759794674296,-500.0,0.00019773,2]
[389689129,1759794674305,-500.0,0.00019773,2]
[389689130,1759794674315,-501.18840972,0.00019773,2]
[389689131,1759794674324,-500.0,0.00019773,2]
[389689132,1759794674334,-341.57966396,0.00019773,2]
[389689133,1759794674343,-500.0,0.00019773,2]
[389689134,1759794674352,-168.0,0.00019796,2]
[389689135,1759794674361,-419.47968403,0.00019817,2]
[389689136,1759794674370,-168.0,0.00019839,2]
[389689137,1759794674381,-454.57727495,0.00019845,4]
[389689138,1759794674390,-11365.0,0.00019961,7]
[389689139,1759794674399,-401.98989178,0.00019961,7]
[389689140,1759794674409,-12500.0,0.0001997,7]
[389689141,1759794674418,-500.0,0.00019973,2]
[389689142,1759794674427,-500.0,0.00019973,2]
[389689143,1759794674436,-176.86149284,0.00019973,2]
[389689144,1759794674446,-500.0,0.00019973,2]
[389689145,1759794674455,-500.0,0.00019973,2]
[389689146,1759794674465,-500.0,0.00019973,2]
[389689147,1759794674474,-500.0,0.00019973,2]
[389689148,1759794674483,-500.0,0.00019973,2]
[389689149,1759794674492,-500.0,0.00019973,2]
[389689150,1759794674501,-500.0,0.00019973,2]
[389689151,1759794674511,-500.0,0.00019973,2]
[389689152,1759794674520,-257.71359532,0.00019973,2]
[389689153,1759794674529,-500.42874683,0.00019973,2]
[389689154,1759794674539,-161.42942961,0.00019973,2]
[389689155,1759794674549,-197.54015947,0.00019973,2]
[389689156,1759794674559,-500.0,0.00019973,2]
[389689157,1759794674568,-500.0,0.00019973,2]
[389689158,1759794674578,-500.0,0.00019973,2]
[389689159,1759794674588,-500.0,0.00019973,2]
[389689160,1759794674597,-291.28515769,0.00019973,2]
[389689161,1759794674607,-500.0,0.00019973,2]
[389689162,1759794674617,-500.0,0.00019973,2]
[389689163,1759794674626,-162.95484685,0.00019973,2]
[389689164,1759794674636,-500.0,0.00019973,2]
[389689165,1759794674645,-500.0,0.00019973,2]
[389689166,1759794674656,-200.59333751,0.00019973,2]
[389689167,1759794674665,-500.0,0.00019973,2]
[389689168,1759794674675,-193.16151867,0.00019973,2]
[389689169,1759794674685,-587.44585344,0.00019973,2]
[389689170,1759794674695,-500.0,0.00019973,2]
[389689171,1759794674704,-443.68500748,0.00019973,2]
[389689172,1759794676079,-5143.500971,0.00019178,2]
[389689173,1759794676089,-1308.72918,0.00019178,2]
[389689174,1759794676286,-2087.61,0.00019178,2]
[389689175,1759794676296,-3475.159849,0.00019178,2]
[389689176,1759794676308,-1668.341122,0.00019178,2]
[389689177,1759794676318,-5143.500971,0.00019178,2]
[389689178,1759794676328,-1308.72918,0.00019178,2]
[389689179,1759794676337,-151.0,0.00019178,2]
[389689180,1759794676347,-5143.500971,0.00019178,2]
[389689181,1759794676356,-1308.72918,0.00019178,2]
[389689182,1759794676365,-5143.500971,0.00019178,2]
[389689183,1759794676375,-655.42887502,0.00019178,2]
[389689188,1759794975930,151.0,0.00028767,120]
[389689189,1759794984452,158.059879,0.000245,30]
[389689204,1759795256721,232.2675,0.00028767,120]
[389689300,1759795832529,-153.34000654,0.00018839,2]
[389689302,1759795832541,-221.00836468,0.00018889,2]
[389689304,1759795832551,-500.0,0.00018939,2]
[389689306,1759795832562,-500.0,0.00018939,2]
[389689308,1759795832574,-500.0,0.00018939,2]
[389689310,1759795832584,-1200.0,0.00019072,2]
[389689312,1759795832596,-1200.0,0.00019073,2]
[389689314,1759795832606,-300.0,0.00019073,2]
[389689316,1759795832615,-300.0,0.00019073,2]
[389689318,1759795832625,-300.0,0.00019073,2]
[389689320,1759795832634,-300.0,0.00019073,2]
[389689323,1759795832653,-300.0,0.00019073,2]
[389689325,1759795832663,-153.34000654,0.00019078,2]
[389689327,1759795832674,-289.92004656,0.00019078,2]
[389689330,1759795832683,-390.87353466,0.00019078,2]
[389689333,1759795832693,-1949.0733374,0.00019078,2]
[389689335,1759795832703,-10000.01,0.00019078,2]
[389689337,1759795832712,-401.98989178,0.00019103,2]
[389689339,1759795832722,-234.17717776,0.00019103,2]
[389689341,1759795832732,-289.92004652,0.00019147,2]
[389689343,1759795832741,-622.43468,0.00019173,2]
[389689345,1759795832751,-500.0,0.00019173,2]
[389689347,1759795832760,-500.0,0.00019173,2]
[389689349,1759795832769,-500.0,0.00019177,2]
[389689350,1759795832779,-500.0,0.00019177,2]
[389689352,1759795832789,-500.0,0.00019177,2]